Cogmind - Beta 14 @@@ ROGUE MODE // 2024.11.04 @ 23:42:37 Player: Kole Result: Destroyed self via exploding Fusion Modulator Performance ------------- Evolutions (0) 0 Regions Visited (1) 200 Robots Destroyed (20) 100 Value Destroyed (394) 394 Prototype IDs (2) 40 Alien Tech Used (0) 0 Bonus (0) 0 TOTAL SCORE: 734 Bonus ------- None Cogmind --------- Core Integrity 0/250 Matter 142/300 Energy 89/125 System Corruption 0% Temperature Cool (12) Movement Walking (120) Location -10/Materials Parts ------- > --- POWER (1) -------- Light Ion Engine > --- PROPULSION (2) --- Aluminum Leg Aluminum Leg > --- UTILITY (2) ------ Small Storage Unit Structural Scanner > --- WEAPON (2) ------- Light Assault Rifle > --- INVENTORY (8) ---- Ion Engine Aluminum Leg Structural Scanner Structural Scanner ECM Suite Particle Gun Datajack Peak State ------------ > --- POWER ------------ Light Ion Engine > --- PROPULSION ------- Aluminum Leg Aluminum Leg > --- UTILITY ---------- Small Storage Unit Sensor Array > --- WEAPON ----------- Small Laser Light Assault Rifle > --- INVENTORY -------- Light Ion Engine Sensor Array Sensor Array EM Pulse Gun Grenade Launcher [Rating: 7] Favorites ----------- Power Light Ion Engine Engine Light Ion Engine Propulsion Aluminum Leg Leg Aluminum Leg Utility Small Storage Unit Device Structural Scanner Storage Small Storage Unit Weapon Light Assault Rifle Energy Gun Small Laser Ballistic Gun Light Assault Rifle Launcher Grenade Launcher Build | -11 -10 ------- Run | Yrd Mat Slots Evolved . | . . Power . | . . Propulsion . | . . Utility . | . . Weapon . | . . Parts Attached 18 | 6 12 Power 4 | 1 3 Engine 4 | 1 3 Core . | . . Reactor . | . . Propulsion 4 | 2 2 Treads . | . . Leg 4 | 2 2 Wheel . | . . Hover . | . . Flight . | . . Utility 6 | 1 5 Device 5 | . 5 Storage 1 | 1 . Processor . | . . Hackware . | . . Protection . | . . Artifact . | . . Weapon 4 | 2 2 Energy Gun 1 | 1 . Energy Cannon . | . . Ballistic Gun 2 | 1 1 Ballistic Cannon . | . . Launcher 1 | . 1 Special Weapon . | . . Impact Weapon . | . . Slashing Weapon . | . . Piercing Weapon . | . . Special Melee Weapon . | . . Unidentified Prototypes . | . . Parts Lost 9 | . 9 Power 2 | . 2 Propulsion 2 | . 2 Utility 2 | . 2 Weapon 3 | . 3 Highest Loss Streak 7 | . 7 To Critical Strikes . | . . Average Slot Usage (%) 94 | . 94 Engine 13 | . 13 Leg 25 | . 25 Device 11 | . 11 Storage 14 | . 14 Energy Gun 7 | . 7 Ballistic Gun 14 | . 14 Launcher 6 | . 6 Peak Build Rating 7 | 6 7 Average Rating 6 | 4 6 On Entrance 3 | . 6 Naked Turns . | . . Heaviest Build 13 | 10 13 Greatest Support 20 | 20 20 Greatest Overweight (x) 3 | . 3 Average Overweight (x) . | . . Largest Inventory Capacity 8 | 8 8 Average Capacity 7 | 7 8 Most Carried 8 | 5 8 Average Carried 6 | 1 6 Final Capacity 8 | 8 8 Final Carried 7 | 2 7 Class Distribution -------------------- 100% | Mutant Dominant Class ---------------- Mutant | -10/Materials Resources | -11 -10 ----------- Run | Yrd Mat Matter Collected 306 | 204 102 Remotely . | . . Salvage Created 431 | . 431 Parts 35 | . 35 Haulers Intercepted . | . . Recyclers Shooed . | . . Parts Field Recycled . | . . Retrieved Matter . | . . Parts Self-Destructed . | . . Prevented . | . . Kills | -11 -10 ------- Run | Yrd Mat Combat Hostiles Destroyed 15 | . 15 Guns 8 | . 8 AOE 7 | . 7 Classes Destroyed 5 | . 5 Worker 2 | . 2 Builder 2 | . 2 Recycler 1 | . 1 Swarmer 6 | . 6 Grunt 9 | . 9 Best Kill Streak 8 | . 8 Combat Bots Only 7 | . 7 Max Kills in Single Turn 4 | . 4 Gunslinging . | . . Exploded 3 | . 3 Melee . | . . Uniques/NPCs Destroyed . | . . Combat | -11 -10 -------- Run | Yrd Mat Hostile Shots Fired 137 | . 137 Missed 35 | . 35 Damage Taken 1083 | . 1083 Core 310 | . 310 Absorbed by Shields . | . . Core Remaining (%) 100 | 100 . Volleys Fired 41 | . 41 Largest 2 | . 2 Hottest 60 | . 60 Shots Fired 72 | . 72 Gun 62 | . 62 Cannon . | . . Launcher 10 | . 10 Special . | . . Kinetic 40 | . 40 Thermal 22 | . 22 Explosive 10 | . 10 Electromagnetic . | . . Robot Hit Streak 11 | . 11 Robot Miss Streak 4 | . 4 Penetration Max . | . . Secondary Targets 2 | . 2 Max Gunslinging Chain 1 | . 1 Shots Hit Robots 47 | . 47 Core Hits 37 | . 37 Critical Kills . | . . Critical Parts Destroyed . | . . Critical Strikes . | . . Melee Attacks . | . . Impact . | . . Slashing . | . . Piercing . | . . Sneak Attacks . | . . Combat Hostiles . | . . Follow-up Attacks . | . . Damage Inflicted 1282 | . 1282 Guns 435 | . 435 Cannons . | . . Explosions 838 | . 838 Melee . | . . Ramming 9 | . 9 Kinetic 230 | . 230 Thermal 205 | . 205 Explosive 838 | . 838 Electromagnetic . | . . Impact . | . . Slashing . | . . Piercing . | . . Highest Corruption . | . . Average Corruption . | . . Corruption Purged . | . . Corruption Blocked . | . . Overload Shots . | . . Overflow Damage 33 | . 33 Projectiles . | . . Explosions 33 | . 33 Melee . | . . Knockbacks . | . . Impact . | . . Kinetic . | . . Secondary . | . . Self-Inflicted Damage 140 | . 140 Shots 4 | . 4 Rammed . | . . Targets Rammed 2 | . 2 Kicked 2 | . 2 Crushed . | . . Highest Temperature 74 | . 74 Average Temperature 24 | . 24 Received Heat Transfer 246 | . 246 Siege Activations . | . . Robots Corrupted . | . . Combat Hostiles . | . . Parts Fried . | . . Impact Corruptions . | . . Robots Melted . | . . Combat Hostiles . | . . Parts Melted 1 | . 1 Heat Transferred 450 | . 450 Parts Sabotaged . | . . Parts Stolen . | . . Parts Stripped . | . . Power Chain Reactions . | . . Alert | -11 -10 ------- Run | Yrd Mat Peak Influence 333 | . 333 Initial . | . . Average 131 | . 145 Maximum Alert Level 1 | . 1 Low Security (%) 66 | 100 62 Level 1 33 | . 37 Level 2 . | . . Level 3 . | . . Level 4 . | . . Level 5 . | . . High Security . | . . Max Security . | . . Squads Dispatched 4 | . 4 Investigation 3 | . 3 Extermination . | . . Reinforcement 1 | . 1 Assault . | . . Garrison . | . . Intercept . | . . Searches Triggered . | . . Construction Impeded . | . . Haulers Reinforced . | . . Active Scanning Responses . | . . Cargo Convoy Interrupts . | . . Stealth | -11 -10 --------- Run | Yrd Mat Distress Signals 2 | . 2 Communications Jammed . | . . Distress Signals . | . . Times Spotted 25 | . 25 Peak Tracking Total 8 | . 8 Tactical Retreats . | . . Traps | -11 -10 ------- Run | Yrd Mat Traps Triggered . | . . Indirectly . | . . Trap Hack Attempts . | . . Triggered . | . . Disarmed . | . . Reprogrammed 4 | . 4 Reused 1 | . 1 Traps Extracted . | . . Installed . | . . Triggered 1 | . 1 Machines | -11 -10 ---------- Run | Yrd Mat Machines Disabled 1 | . 1 Max in Single Turn 1 | . 1 Machines Repaired . | . . Machines Dismantled . | . . Machines Sabotaged . | . . Overloaded Fab Kills . | . . Hacking | -11 -10 --------- Run | Yrd Mat Machines Accessed 8 | . 8 Terminals 6 | . 6 Fabricators . | . . Repair Stations . | . . Recycling Units 2 | . 2 Scanalyzers . | . . Garrison Access . | . . Total Hacks 32 | . 32 Successful 22 | . 22 Failed 10 | . 10 Catastrophic . | . . Database Lockouts . | . . Manual 12 | . 12 Terminals 24 | . 24 Fabricators . | . . Repair Stations . | . . Recycling Units 8 | . 8 Scanalyzers . | . . Garrison Access . | . . Terminal Hacks 9 | . 9 Robot Analysis 1 | . 1 Prototype ID Bank 1 | . 1 Emergency Access Points 2 | . 2 Terminal Index 1 | . 1 Reprogram Traps 1 | . 1 Zone Layout 3 | . 3 Fabricator Hacks . | . . Repair Station Hacks . | . . Recycling Unit Hacks 8 | . 8 Recycle Component 2 | . 2 Process 2 | . 2 Report Inventory 2 | . 2 Retrieve Matter 1 | . 1 Retrieve Components 1 | . 1 Scanalyzer . | . . Garrison Access Hacks . | . . Unauthorized Hacks 5 | . 5 Terminals 5 | . 5 Botnet 5 | . 5 Fabricators . | . . Repair Stations . | . . Recycling Units . | . . Scanalyzers . | . . Garrison Access . | . . Data Cores Recovered . | . . Used . | . . Hacking Detections 7 | . 7 Full Trace Events 5 | . 5 Feedback Events . | . . Feedback Blocked . | . . Robot Schematics Acquired . | . . Robots Built . | . . Authchips . | . . Time . | . . Total Robot Build Rating . | . . Part Schematics Acquired . | . . Parts Built . | . . Authchips . | . . Time . | . . Total Part Build Rating . | . . Parts Repaired . | . . Time . | . . Parts Recycled 2 | . 2 Recycled Matter 65 | . 65 Retrieved Matter 5 | . 5 Retrieved Components 1 | . 1 Parts Scanalyzed . | . . Part Schematics Acquired . | . . Parts Damaged . | . . Bothacking | -11 -10 ------------ Run | Yrd Mat Used RIF Installer . | . . Robots Hacked . | . . Non-combat . | . . Combat . | . . Robot Hacks Applied . | . . Relay Couplers Released . | . . Fabnet Peak Effective % . | . . Robots Rewired . | . . Allies Hacked . | . . Hacks Repelled . | . . Allies | -11 -10 -------- Run | Yrd Mat Total Allies . | . . Largest Group . | . . Highest-Rated Group . | . . Highest-Rated Ally . | . . Total Orders . | . . Ally Attacks . | . . Total Damage . | . . Kills . | . . Allies Corrupted . | . . Allies Melted . | . . Intel | -11 -10 ------- Run | Yrd Mat Robot Analysis Total 1 | . 1 Derelict Logs Recovered . | . . Drone Launches . | . . Drone Recoveries . | . . Exploration | -11 -10 ------------- Run | Yrd Mat Turns Passed 810 | 76 734 Spaces Moved 531 | 58 473 Core 11 | 10 1 Treads . | . . Legs 520 | 48 472 Wheels . | . . Hover . | . . Flight . | . . Fastest Speed 50 | 50 120 Average Speed 121 | 107 122 Slowest Speed 200 | 120 200 Overloaded Moves . | . . Propulsion Burnouts . | . . Robots Hopped . | . . Cave-ins Triggered . | . . Exploration Rate (%) 38 | 4 72 Regions Visited 1 Branch Regions . Pre-discovered Areas . | . . Known Exits Taken . | . . Unknown Exits Taken 1 | 1 . Scrap Searched . | . . Spaces Dug . | . . Terrain Destroyed 49 | . 49 Melee . | . . Projectile . | . . AOE 49 | . 49 Terrain Rammed . | . . Walls Destroyed . | . . Machines Disabled . | . . Actions | -11 -10 --------- Run | Yrd Mat Total 635 | 71 564 Wait 7 | . 7 Move 530 | 57 473 Hop . | . . Pick Up 30 | 8 22 Fast Attach 1 | . 1 Attach 14 | 6 8 Detach . | . . Swap 3 | . 3 Drop 7 | . 7 Fire 41 | . 41 Melee . | . . Ram . | . . Kick 2 | . 2 Crush . | . . Escape Stasis . | . . Rewire . | . . Trap . | . . Miscellaneous . | . . Route ------- -11/Scrapyard -10/Materials (discovered 1 exit: [*Mat]) History --------- Turn | Location | Event 5 | -11/Scrapyard | Discovered new exit (range 15) 77 | -11/Scrapyard | Entered Materials 302 | -10/Materials | Build established: Mutant 479 | -10/Materials | Core integrity fell below 50% 507 | -10/Materials | Destroyed 7 combat bots 563 | -10/Materials | Lost 7 parts (1p2n2u2w) 605 | -10/Materials | Discovered new exit (range 12) 806 | -10/Materials | Core integrity fell below 20% 811 | -10/Materials | Destroyed self via exploding Fusion Modulator Last Messages --------------- 00655_ U-05 Engineer lays Concrete. 00656_ U-05 Engineer builds a Wall. 00660_ U-05 Engineer lays Concrete. 00665_ R-06 Scavenger collects Heat Sink. 00667_ U-05 Engineer builds a Wall. 00669_ R-06 Scavenger collects Sml. Laser. 00671_ U-05 Engineer lays Concrete. 00672_ U-05 Engineer builds a Wall. 00676_ U-05 Engineer lays Concrete. 00746_ Dropped Sensor Array. 00747_ Acquired Structural Scanner. 00748_ Dropped EM Pulse Gun. 00749_ Acquired Structural Scanner. 00783_ Dropped Aluminum Leg. 00783_ Acquired ECM Suite. 00796_ Lgt. Ion Engine destroyed. 00798_ S-10 Pest destroyed. 00803_ R-06 Scavenger collects Aluminum Leg. 00807_ Grenade Launcher destroyed. 00811_ Fusion Modulator explodes. Map ----- +----------------------------------------------------+ | ?????????????????????# !! #??# #????#"""## | | ?????????????????????# !! #??# #????###### | | ?????????????????????############# #?????????# | | ??????????????????????????? ########### | | ???????????????????????????########## #! | | ???????????????????????????###??????# """# | | ??????????????????????????? #??????#| ! """# | | ??????????????????????????? #??????# """#^ | | ??????????????????????????? #??????# + | | ??????????????????????????? #??????# """# | | ??????????????????????????? #??????# """# | | ?????????????????????????? ##??????# """# | | ????????????????????????? ##??????# # | | ????????????????????????? ##???############# | | ???????????????????????## #????#"" "!""#??## | | ???????????????????????## #####????"!" ##### | | ???????????????????????# ? ####???? ##### | | ???????????????????????? ? ????? | | ????????????## ????????? ????????? | | ????????????## ????????? ? ???????????? | | ????????????## ####### ##### ## | | ?????????? ## #######;#;################ | | ??????????#### ##!!! # | | ???????? %[s """ ##!! # | | ???????##+????## """ ##!! # | | ???????## # ##@ """ ## # | | ???????## ?? ## ## r ## + | | ????????? ?????? ## ## ! ## # | | ??????????????????## ## ## ####+# | | ??????????????????## + ## ##= | | ??????????????????## ############# ## | | ??????????????????## ####################/## | | ??????????????????## ##???############### ## | | ??????????????????## ####### !!! #### ## | | ??????????????????## ####### !! #### ###### | | ??????????????????## + [ #### ###### | | ??????????????????##### # #### ####?# | | ??????????????######### ########## ## ###### | | ??????????????######### T #### | | ??????????????## # % # ### | | ??????????????## """ # % %## # | | ??????????????## """ # ^ [ + | | ??????????????## """ # ^ ^ % # | | ??????????????## # # | | ??????????????## """ # | | ??????????????## """ + | | ??????????????##| """ # | | ??????????????## ###########+############## | | ??????????????## """ ######### ########### | | ??????????????## """ + + """ ##????????? | +----------------------------------------------------+ Best States ------------- Heat Dissipation 35 Energy Generation 10 Energy Capacity 250 Matter Stores 265 Matter Capacity 300 Sight Range 16 Robot Scan Range 14 Terrain Scan Density 10 Evasion (%) 55 Item Schematics ----------------- None Robot Schematics ------------------ None Fabricated ------------ Nothing Alien Tech Used ----------------- None Achievements -------------- None Challenges ------------ None Game ------ Seed VampiricSmartbombAxe Manual? 0 Play Time 00:15:02 Cumulative 11.2 hours Start 2024.11.04 @ 23:29:11 End 2024.11.04 @ 23:42:37 Sessions 1 Manual Loads 0 Difficulty Rogue Special Mode None Game No. 19 Rogue 19 Adventurer 0 Explorer 0 Win Type - Total 0 Types 0/0/0/0/0/0/0/0/0 Lore% 10 Gallery% 17 Achievement% 14 Wizard Run 0 Options --------- Layout 1 ASCII 0 Keyboard 0 Movement Mouse Keybinds 0 Fullscreen 2 Font 24/Smallcaps Map View 50x35 Zoom Use 0% Tactical HUD 1 Map Filters NONE Filters NONE Steam 1 RUN: 53594922-38db-40c5-88eb-73c9242e40d5